{"text_format":"1","workbook":"xlsx","n_sheets":3,"sheets":["План","Приоритет","Лист3"],"not_rendered":{"charts":0,"images":1,"macros":1,"external_links":0,"defined_names":2,"comments":0,"pivot_tables":0},"unopened":[],"bounds":{"document_bytes":16777216,"sheet_cells":100000,"rows_first":2000,"rows_last":500,"rows_between":2000,"halvings":0,"cell_chars":16384,"cell_head_chars":4096},"cells_cut":0,"cells_raw":0,"read":"whole","date_system":"1900"}

{"sheet":"План","index":0,"n_rows":55,"n_cols":28,"rows_kept":55,"cut":false,"hidden":false,"merged":[[5,24,5,25],[5,26,5,27],[2,8,3,18],[5,0,6,0],[5,1,6,1],[5,2,5,3],[5,4,5,5],[5,6,5,7],[5,8,5,9],[5,10,5,11],[5,12,5,13],[5,14,5,15],[43,0,44,0],[5,16,5,17],[5,18,5,19],[5,20,5,21],[5,22,5,23],[7,0,11,0],[12,0,18,0],[19,0,24,0],[25,0,28,0],[30,0,41,0]]}
[]
[]
[null,null,null,null,null,null,null,null,"ПЛАН ПОТРЕБНОСТЕЙ НА 2017 ГОД"]
[]
[]
["Проект","Номер","Январь",null,"февраль",null,"март",null,"апрель",null,"май",null,"июнь",null,"июль",null,"август",null,"сентябрь",null,"октябрь",null,"ноябрь",null,"декабрь",null,"общее"]
[null,null,"Требуется","Выполнено","Требуется","Выполнено","Требуется","Выполнено","Требуется","Выполнено","Требуется","Выполнено","Требуется","Выполнено","Требуется","Выполнено","Требуется","Выполнено","Требуется","Выполнено","Требуется","Выполнено","Требуется","Выполнено","Требуется","Выполнено","Требуется","Выполнено"]
["GM","11-230510-00",2500,0,null,null,null,null,null,null,null,null,null,null,null,null,null,null,null,null,null,null,null,null,null,null,{"$f":"C8+E8+G8+I8+K8+M8+O8+Q8+S8+U8+W8+Y8","v":2500},{"$f":"D8+F8+H8+J8+L8+N8+P8+R8+T8+V8+X8+Z8","v":0}]
[null,"11-235029-10",2500,0,null,null,null,null,null,null,null,null,null,null,null,null,null,null,null,null,null,null,null,null,null,null,{"$f":"C9+E9+G9+I9+K9+M9+O9+Q9+S9+U9+W9+Y9","v":2500},0]
[null,"11-230206-10",2500,0,null,null,null,null,null,null,null,null,null,null,null,null,null,null,null,null,null,null,null,null,null,null,2500,0]
[null,"11-230208-10",2500,0,null,null,null,null,null,null,null,null,null,null,null,null,null,null,null,null,null,null,null,null,null,null,2500,0]
[null,"11-230210-00",5000,0,null,null,null,null,null,null,null,null,null,null,null,null,null,null,null,null,null,null,null,null,null,null,5000,0]
["РСМ (климат. система)","11-000330-00",300,0,null,null,null,null,null,null,null,null,null,null,null,null,null,null,null,null,null,null,null,null,null,null,300,0]
[null,"11-000333-00",300,0,null,null,null,null,null,null,null,null,null,null,null,null,null,null,null,null,null,null,null,null,null,null,300,0]
[null,"11-000902-00",300,0,null,null,null,null,null,null,null,null,null,null,null,null,null,null,null,null,null,null,null,null,null,null,300,0]
[null,"11-310184-00",300,0,null,null,null,null,null,null,null,null,null,null,null,null,null,null,null,null,null,null,null,null,null,null,300,0]
[null,"11-001801-00",300,0,null,null,null,null,null,null,null,null,null,null,null,null,null,null,null,null,null,null,null,null,null,null,300,0]
[null,"11-001802-00",300,0,null,null,null,null,null,null,null,null,null,null,null,null,null,null,null,null,null,null,null,null,null,null,300,0]
[null,"11-000904-00",300,0,null,null,null,null,null,null,null,null,null,null,null,null,null,null,null,null,null,null,null,null,null,null,300,0]
["КАМАЗ-6540-21","11-021610-10",150,0,null,null,null,null,null,null,null,null,null,null,null,null,null,null,null,null,null,null,null,null,null,null,150,0]
[null,"11-022841-00",150,0,null,null,null,null,null,null,null,null,null,null,null,null,null,null,null,null,null,null,null,null,null,null,150,0]
[null,"11-024037-00",150,0,null,null,null,null,null,null,null,null,null,null,null,null,null,null,null,null,null,null,null,null,null,null,150,0]
[null,"11-053977-01",150,0,null,null,null,null,null,null,null,null,null,null,null,null,null,null,null,null,null,null,null,null,null,null,150,0]
[null,"11-020304-00",150,0,null,null,null,null,null,null,null,null,null,null,null,null,null,null,null,null,null,null,null,null,null,null,150,0]
[null,"11-020310-00",150,0,null,null,null,null,null,null,null,null,null,null,null,null,null,null,null,null,null,null,null,null,null,null,150,0]
["КАМАЗ-daimler","11-020825-00",1600,0,null,null,null,null,null,null,null,null,null,null,null,null,null,null,null,null,null,null,null,null,null,null,1600,0]
[null,"11-020723-00",500,0,null,null,null,null,null,null,null,null,null,null,null,null,null,null,null,null,null,null,null,null,null,null,500,0]
[null,"11-000503-00",1600,0,null,null,null,null,null,null,null,null,null,null,null,null,null,null,null,null,null,null,null,null,null,null,1600,0]
[null,"11-000502-00",0,0,null,null,null,null,null,null,null,null,null,null,null,null,null,null,null,null,null,null,null,null,null,null,0,0]
["К-744-М","11-030520-00",500,0,null,null,null,null,null,null,null,null,null,null,null,null,null,null,null,null,null,null,null,null,null,null,500,0]
["УРАЛ-6363","11-430010-00",100,0,null,null,null,null,null,null,null,null,null,null,null,null,null,null,null,null,null,null,null,null,null,null,100,0]
[null,"11-430018-00",100,0,null,null,null,null,null,null,null,null,null,null,null,null,null,null,null,null,null,null,null,null,null,null,100,0]
[null,"11-430020-00",100,0,null,null,null,null,null,null,null,null,null,null,null,null,null,null,null,null,null,null,null,null,null,null,100,0]
[null,"11-430023-00",100,0,null,null,null,null,null,null,null,null,null,null,null,null,null,null,null,null,null,null,null,null,null,null,100,0]
[null,"11-430026-00",100,0,null,null,null,null,null,null,null,null,null,null,null,null,null,null,null,null,null,null,null,null,null,null,100,0]
[null,"11-430027-00",100,0,null,null,null,null,null,null,null,null,null,null,null,null,null,null,null,null,null,null,null,null,null,null,100,0]
[null,"11-430030-00",100,0,null,null,null,null,null,null,null,null,null,null,null,null,null,null,null,null,null,null,null,null,null,null,100,0]
[null,"11-430034-00",100,0,null,null,null,null,null,null,null,null,null,null,null,null,null,null,null,null,null,null,null,null,null,null,100,0]
[null,"11-430036-00",100,0,null,null,null,null,null,null,null,null,null,null,null,null,null,null,null,null,null,null,null,null,null,null,100,0]
[null,"11-430040-00",100,0,null,null,null,null,null,null,null,null,null,null,null,null,null,null,null,null,null,null,null,null,null,null,100,0]
[null,"11-430043-00",100,0,null,null,null,null,null,null,null,null,null,null,null,null,null,null,null,null,null,null,null,null,null,null,100,0]
[null,"11-430122-00",100,0,null,null,null,null,null,null,null,null,null,null,null,null,null,null,null,null,null,null,null,null,null,null,100,0]
["А-18","11-261800-00",150,0,null,null,null,null,null,null,null,null,null,null,null,null,null,null,null,null,null,null,null,null,null,null,150,0]
["ОС-8.2","11-262715-00",100,0,null,null,null,null,null,null,null,null,null,null,null,null,null,null,null,null,null,null,null,null,null,null,100,0]
[null,"11-260021-00",100,0,null,null,null,null,null,null,null,null,null,null,null,null,null,null,null,null,null,null,null,null,null,null,100,0]
[null,null,null,null,null,null,null,null,null,null,null,null,null,null,null,null,null,null,null,null,null,null,null,null,null,null,0,0]
[null,null,null,null,null,null,null,null,null,null,null,null,null,null,null,null,null,null,null,null,null,null,null,null,null,null,0,0]
[null,null,null,null,null,null,null,null,null,null,null,null,null,null,null,null,null,null,null,null,null,null,null,null,null,null,0,0]
[null,null,null,null,null,null,null,null,null,null,null,null,null,null,null,null,null,null,null,null,null,null,null,null,null,null,0,0]
[null,null,null,null,null,null,null,null,null,null,null,null,null,null,null,null,null,null,null,null,null,null,null,null,null,null,0,0]
[null,null,null,null,null,null,null,null,null,null,null,null,null,null,null,null,null,null,null,null,null,null,null,null,null,null,0,0]
[null,null,null,null,null,null,null,null,null,null,null,null,null,null,null,null,null,null,null,null,null,null,null,null,null,null,0,0]
[null,null,null,null,null,null,null,null,null,null,null,null,null,null,null,null,null,null,null,null,null,null,null,null,null,null,0,0]
[null,null,null,null,null,null,null,null,null,null,null,null,null,null,null,null,null,null,null,null,null,null,null,null,null,null,0,0]
[null,null,null,null,null,null,null,null,null,null,null,null,null,null,null,null,null,null,null,null,null,null,null,null,null,null,0,0]

{"sheet":"Приоритет","index":1,"n_rows":8,"n_cols":17,"rows_kept":8,"cut":false,"hidden":false,"merged":[[2,0,2,4]]}
[]
[]
["Приоритет выпуска продукции пр. уч. №4"]
[]
[]
["№","Изделие","Требуемое кол-во","Дата потребности","Статус","Лазер","Гибка","Сварка/сборка","Покраска","Примечание"]
[]
[null,null,null,null,null,null,null,null,null,null,null,null,null,null,null,null,"Выполнено"]

{"sheet":"Лист3","index":2,"n_rows":0,"n_cols":0,"rows_kept":0,"cut":false,"hidden":false,"merged":[]}